bitfinex-derivatives/quotes_SOLF0:USTF0_20240920
["timestamp","ask_amount","ask_price","bid_price","bid_amount"]
[1726833601076,10.21,150.61,150.56,132.76]
[1726833601282,12.8651,150.61,150.56,136.0804]
[1726833601676,3.3198,150.59,150.56,136.0804]
[1726833601876,2.6551,150.61,150.56,132.76]
[1726833602081,10.21,150.6,150.56,132.76]
[1726833602880,3.3202,150.57,150.56,132.76]
[1726833603080,3.3202,150.57,150.55,10.21]
[1726833603278,13.53,150.58,150.55,3.3205]
[1726833603479,10.21,150.57,150.52,10.21]
[1726833603685,1.4002,150.6,150.53,10.21]
[1726833603886,10.21,150.58,150.53,10.21]
[1726833604790,3.3208,150.54,150.53,10.21]
[1726833605479,3.3207,150.55,150.52,13.5312]
[1726833606191,3.3206,150.56,150.53,10.21]
[1726833606384,10.21,150.59,150.53,10.21]
[1726833606580,1.4002,150.6,150.55,10.21]
[1726833606787,1.4002,150.6,150.56,10.21]
[1726833607083,11.6102,150.6,150.55,10.21]
[1726833607287,3.3206,150.56,150.54,10.21]
[1726833607480,10.21,150.59,150.49,138.90919078]
[1726833607481,10.21,150.57,150.52,10.21]
[1726833608092,3.3209,150.54,150.52,10.21]
[1726833608487,10.21,150.53,150.41,13.5836351]
[1726833608685,1.3535,150.53,150.4,135.5174]
[1726833608894,10.21,150.49,150.44,10.21]
[1726833609191,10.21,150.49,150.44,13.58984539]
[1726833609585,3.3225,150.47,150.44,13.58984539]
[1726833609784,10.21,150.49,150.44,13.58984539]
[1726833610581,3.322,150.49,150.45,10.21]
[1726833611183,10.21,150.5,150.45,10.21]
[1726833611487,10.21,150.49,150.45,10.21]
[1726833611680,3.3223,150.48,150.45,13.5327]
[1726833611887,3.3223,150.48,150.45,3.3227]
[1726833612087,10.21,150.48,150.44,10.21]
[1726833612286,2.6046,150.52,150.44,10.21]
[1726833612488,10.21,150.5,150.45,10.21]
[1726833612687,3.3221,150.49,150.46,3.3226]
[1726833612888,10.21,150.5,150.45,10.21]
[1726833613285,3.3223,150.48,150.45,3.3228]
[1726833613988,2.6046,150.52,150.45,10.21]
[1726833614296,12.8146,150.52,150.47,10.21]
[1726833614694,2.6046,150.52,150.46,10.21]
[1726833614885,1.3535,150.53,150.46,10.21]
[1726833615087,10.21,150.52,150.47,10.21]
[1726833615293,1.3535,150.53,150.47,10.21]
[1726833615597,10.21,150.5,150.46,13.57867194]
[1726833615799,10.21,150.48,150.4,135.5174]
[1726833615996,10.21,150.47,150.42,10.21]
[1726833616599,10.21,150.47,150.44,3.3229]
[1726833616799,10.21,150.47,150.44,6.69223663]
[1726833616992,10.21,150.47,150.44,3.3229]
[1726833617392,3.3223,150.48,150.44,13.5329]
[1726833617600,3.322,150.49,150.44,13.48096184]
[1726833617799,13.532,150.49,150.44,13.48096184]
[1726833618497,13.532,150.49,150.46,3.3226]
[1726833619898,3.322,150.49,150.45,3.3227]
[1726833620099,13.532,150.49,150.45,3.3227]
[1726833620599,3.322,150.49,150.45,13.5327]
[1726833620801,13.532,150.49,150.45,13.5327]
[1726833620997,13.532,150.49,150.45,3.3227]
[1726833621199,3.322,150.49,150.45,3.3227]
[1726833621501,10.21,150.49,150.44,13.48096184]
[1726833622791,2.6877,150.52,150.44,13.48096184]
[1726833622995,6.6383,150.62,150.44,3.27096184]
[1726833623197,2.6256,150.6,150.56,10.21]
[1726833623405,3.3199,150.59,150.57,3.39814439]
[1726833623805,11.3769,150.61,150.57,3.39814439]
[1726833624292,11.3769,150.61,150.57,13.46821689]
[1726833624293,1.1669,150.61,150.57,13.46821689]
[1726833624696,1.1669,150.61,150.59,10.21]
[1726833625298,11.3769,150.61,150.55,3.9693]
[1726833625600,13.5299,150.59,150.55,3.9693]
[1726833626102,13.5299,150.59,150.55,7.23156175]
[1726833626294,3.3196,150.6,150.56,13.5303]
[1726833626802,4.4863,150.61,150.58,10.21]
[1726833627099,10.21,150.63,150.58,10.21]
[1726833627997,3.3191,150.62,150.58,13.5298]
[1726833628203,3.3191,150.62,150.59,10.21]
[1726833628402,3.319,150.63,150.59,13.5297]
[1726833628994,3.3187,150.64,150.61,10.21]
[1726833629500,10.21,150.66,150.61,10.21]
[1726833629906,4.025,150.7,150.6,3.3194]
[1726833629907,15.94,150.67,150.6,3.3194]
[1726833630301,3.3188,150.64,150.6,3.3194]
[1726833630501,3.3188,150.64,150.61,3.3192]
[1726833631905,15.94,150.65,150.56,15.94]
[1726833632407,15.94,150.65,150.58,3.3198]
[1726833632999,15.94,150.65,150.56,15.94]
[1726833633600,3.3194,150.61,150.58,3.3199]
[1726833634404,15.94,150.64,150.55,7.23156175]
[1726833634605,15.94,150.64,150.54,148.88]
[1726833634806,3.9953,150.63,150.54,148.88]
[1726833635310,3.3201,150.58,150.54,148.88]
[1726833635703,3.3201,150.58,150.54,152.18831193]
[1726833635904,3.3201,150.58,150.55,3.3205]
[1726833637002,3.3203,150.57,150.54,132.94]
[1726833637210,15.94,150.6,150.54,132.94]
[1726833637597,3.3205,150.56,150.54,132.94]
[1726833639108,3.9953,150.63,150.54,132.94]
[1726833639109,3.3206,150.55,150.54,132.94]
[1726833639310,15.94,150.56,150.46,15.94]
[1726833639513,1.2873,150.55,150.46,15.94]
[1726833639710,1.2873,150.55,150.48,3.3221]
[1726833641114,15.94,150.54,150.45,132.84]
[1726833641317,18.5794,150.54,150.45,132.84]
[1726833641511,3.3222,150.48,150.45,136.1627]
[1726833641716,3.3222,150.48,150.45,132.84]
[1726833641916,18.5794,150.54,150.45,132.84]
[1726833642117,3.322,150.49,150.45,132.84]
[1726833643211,3.322,150.49,150.46,3.3225]
[1726833643417,3.3218,150.5,150.45,132.84]
[1726833643814,18.5794,150.54,150.45,132.84]
[1726833644214,15.94,150.52,150.45,132.84]
[1726833644413,3.3226,150.47,150.45,132.84]
[1726833645610,2.6394,150.54,150.45,132.84]
[1726833645611,3.3226,150.46,150.45,132.84]
[1726833647816,3.3233,150.43,150.4,3.3237]
[1726833648514,15.94,150.47,150.39,1.3005]
[1726833648714,15.94,150.49,150.4,15.94]
[1726833648911,15.94,150.51,150.42,15.94]
[1726833649112,3.3224,150.47,150.42,15.94]
[1726833649317,15.94,150.51,150.41,15.94]
[1726833650315,3.323,150.45,150.42,3.3234]
[1726833652019,3.323,150.45,150.43,3.3232]
[1726833653016,3.3224,150.48,150.44,3.323]
[1726833653220,15.94,150.51,150.43,19.18170525]
[1726833653415,15.94,150.53,150.43,15.94]
[1726833653618,3.322,150.49,150.46,3.3224]
[1726833653822,2.6394,150.54,150.47,15.94]
[1726833654215,3.3214,150.52,150.49,3.3217]
[1726833654415,3.3214,150.52,150.47,15.94]
[1726833654618,1.2873,150.55,150.47,15.94]
[1726833654817,3.3212,150.53,150.5,3.3216]
[1726833655016,1.2873,150.55,150.5,3.3216]
[1726833655225,1.2873,150.55,150.47,15.94]
[1726833655428,3.3215,150.51,150.47,15.94]
[1726833655822,1.2873,150.55,150.47,15.94]
[1726833655823,3.3218,150.5,150.47,15.94]
[1726833656030,3.3218,150.5,150.46,3.32535702]
[1726833656031,17.2273,150.55,150.46,3.32535702]
[1726833656627,3.3219,150.5,150.47,3.3224]
[1726833659027,3.3219,150.49,150.47,3.3224]
[1726833659226,17.2273,150.55,150.47,3.3224]
[1726833659526,3.3218,150.5,150.47,3.3224]
[1726833659928,17.2273,150.55,150.48,3.322]
[1726833660130,3.3214,150.52,150.47,15.94]
[1726833660331,1.2873,150.55,150.47,15.94]
[1726833660632,1.2873,150.55,150.5,3.3217]
[1726833660931,3.3212,150.53,150.5,3.3217]
[1726833661131,1.2873,150.55,150.5,3.3217]
[1726833662129,1.2873,150.55,150.46,4.6939]
[1726833662331,1.2873,150.55,150.45,4.64418298]
[1726833662332,15.94,150.53,150.45,4.64418298]
[1726833662534,15.94,150.53,150.45,1.3062]
[1726833662727,3.3221,150.49,150.46,3.3224]
[1726833663032,3.3221,150.49,150.45,1.3062]
[1726833663832,1.2873,150.55,150.46,15.94]
[1726833664028,1.2873,150.55,150.48,15.94]
[1726833665034,3.3211,150.53,150.5,3.3217]
[1726833666737,3.3211,150.53,150.48,15.94]
[1726833666931,3.321,150.54,150.48,15.94]
[1726833667729,3.321,150.54,150.51,3.3214]
[1726833668334,18.6326,150.59,150.52,3.3212]
[1726833668534,3.3206,150.56,150.51,15.94]
[1726833668839,2.6926,150.59,150.53,15.94]
[1726833669037,1.3851,150.59,150.53,15.94]
[1726833669238,1.3406,150.61,150.55,3.3205]
[1726833669836,3.3202,150.58,150.55,3.3205]
[1726833670232,1.3406,150.61,150.53,19.24387185]
[1726833670438,1.3406,150.61,150.53,19.261]
[1726833670439,17.2806,150.61,150.53,19.261]
[1726833670738,17.2806,150.61,150.53,3.321]
[1726833672139,3.3206,150.56,150.53,3.321]
[1726833672732,3.3206,150.56,150.54,3.3208]
[1726833674840,3.3203,150.57,150.55,3.3205]
[1726833675034,1.3406,150.61,150.55,3.3205]
[1726833675233,3.3196,150.6,150.57,15.94]
[1726833675436,98.02933797,150.62,150.52,19.25096558]
[1726833675437,1.2894,150.65,150.59,15.94]
[1726833675839,1.2894,150.65,150.6,3.3193]
[1726833675840,3.319,150.63,150.6,3.3193]
[1726833676245,1.2787,150.7,150.62,15.94]
[1726833676539,3.318,150.67,150.64,3.3185]
[1726833676941,1.2787,150.7,150.62,19.21032214]
[1726833677137,3.3179,150.68,150.65,3.3182]
[1726833677340,3.3179,150.68,150.65,19.2582]
[1726833677737,3.3179,150.68,150.65,15.94]
[1726833677933,1.2894,150.71,150.65,15.94]
[1726833678138,3.318,150.67,150.64,3.3185]
[1726833679132,3.3178,150.68,150.65,3.3184]
[1726833683047,1.2894,150.71,150.63,22.59424308]
[1726833683243,1.2894,150.71,150.63,19.2587]
[1726833683438,1.2894,150.71,150.65,15.94]
[1726833684047,3.3177,150.69,150.66,3.3182]
[1726833685142,3.3174,150.7,150.67,3.3179]
[1726833685442,97.96006452,150.74,150.68,15.94]
[1726833685846,3.3171,150.72,150.68,19.2576]
[1726833686037,3.3171,150.72,150.68,19.22564179]
[1726833686442,3.3171,150.72,150.69,3.3174]
[1726833686847,3.3168,150.73,150.7,3.3173]
[1726833687041,1.2887,150.77,150.7,15.94]
[1726833687239,1.3031,150.78,150.7,15.94]
[1726833687648,3.3164,150.75,150.72,3.3169]
[1726833687944,1.3031,150.78,150.72,3.3169]
[1726833688148,3.3167,150.73,150.71,3.317]
[1726833688947,1.3031,150.78,150.71,3.317]
[1726833688948,3.3166,150.74,150.71,3.317]
[1726833689247,1.3031,150.78,150.7,19.2572]
[1726833689443,1.3031,150.78,150.7,15.94]
[1726833689845,3.3166,150.74,150.71,3.3171]
[1726833692646,3.3167,150.73,150.7,19.2572]
[1726833693048,15.94,150.78,150.69,1.3225]
[1726833693649,3.3168,150.73,150.7,3.3173]
[1726833694447,3.3168,150.73,150.7,19.2573]
[1726833695150,15.94,150.78,150.7,15.94]
[1726833695456,15.94,150.76,150.68,19.22564179]
[1726833695650,1.3301,150.75,150.68,19.22564179]
[1726833696244,3.317,150.72,150.69,3.3175]
[1726833697553,15.94,150.82,150.7,15.94]
[1726833697748,17.266,150.82,150.74,15.94]
[1726833698255,3.3161,150.76,150.74,15.94]
[1726833698649,3.3162,150.75,150.74,15.94]
[1726833699454,1.326,150.82,150.74,15.94]
[1726833699653,1.326,150.82,150.75,15.94]
[1726833699949,3.3157,150.78,150.75,19.2562]
[1726833700258,1.326,150.82,150.75,19.2562]
[1726833700453,3.3159,150.77,150.75,15.94]
[1726833700957,1.326,150.82,150.74,3.3164]
[1726833701159,17.266,150.82,150.73,15.94]
[1726833701860,3.3163,150.75,150.73,19.2566]
[1726833704656,3.3161,150.76,150.74,3.3164]
[1726833704857,17.266,150.82,150.74,3.3164]
[1726833705059,1.326,150.82,150.74,3.3164]
[1726833705459,1.326,150.82,150.73,19.2565]
[1726833706757,3.3161,150.76,150.73,19.2565]
[1726833706957,3.3161,150.76,150.74,3.3164]
[1726833708963,3.3159,150.77,150.74,3.3164]
[1726833709261,1.326,150.82,150.75,15.94]
[1726833709654,1.326,150.82,150.77,15.94]
[1726833709862,113.80228556,150.88,150.79,15.94]
[1726833710053,97.86228556,150.88,150.8,3.315]
[1726833710265,4.0932,150.9,150.81,15.94]
[1726833710660,3.3143,150.84,150.81,19.2548]
[1726833711066,3.3143,150.84,150.82,3.30016902]
[1726833711266,4.0932,150.9,150.82,6.61476902]
[1726833711267,3.3141,150.85,150.82,6.61476902]
[1726833712272,3.3143,150.84,150.82,6.61476902]
[1726833712969,20.0332,150.9,150.81,15.94]
[1726833713362,3.3141,150.85,150.82,3.3146]
[1726833713568,3.3141,150.85,150.81,15.94]
[1726833714075,3.3142,150.84,150.82,3.3145]
[1726833715270,20.0332,150.9,150.8,19.2549]
[1726833715464,15.94,150.88,150.8,19.2549]
[1726833715669,15.94,150.88,150.8,19.21321375]
[1726833715876,3.3148,150.82,150.8,15.94]
[1726833716570,3.3148,150.82,150.8,19.2551]
[1726833716774,3.3145,150.83,150.8,19.2551]
[1726833718080,15.94,150.88,150.8,15.94]
[1726833718581,3.3148,150.82,150.8,15.94]
[1726833720178,3.3149,150.81,150.8,15.94]
[1726833720378,15.94,150.85,150.76,148.6]
[1726833720579,4.0289,150.84,150.76,148.6]
[1726833720883,3.3153,150.8,150.77,6.65920757]
[1726833721185,3.3153,150.8,150.77,3.3156]
[1726833721880,3.315,150.81,150.78,19.2555]
[1726833722482,3.3147,150.82,150.8,15.94]
[1726833722686,6.6269,150.88,150.8,15.94]
[1726833722879,3.3146,150.83,150.8,15.94]
[1726833723873,3.3146,150.83,150.8,19.2551]
[1726833724076,15.94,150.88,150.8,15.94]
[1726833724283,15.94,150.86,150.78,15.94]
[1726833724474,4.0202,150.85,150.78,15.94]
[1726833724780,15.94,150.84,150.76,148.6]
[1726833726179,3.3157,150.78,150.76,151.916]
[1726833726375,3.3157,150.78,150.76,148.6]
[1726833726782,3.3158,150.77,150.76,148.6]
[1726833727473,3.3158,150.77,150.76,132.66]
[1726833727881,3.3157,150.78,150.76,132.66]
[1726833728985,3.3158,150.77,150.76,132.66]
[1726833729182,3.3158,150.77,150.74,19.2563]
[1726833729875,3.3157,150.78,150.75,3.3161]
[1726833730278,15.94,150.84,150.75,3.3161]
[1726833730482,15.94,150.84,150.74,19.2564]
[1726833730876,15.94,150.84,150.74,15.94]
[1726833731281,15.94,150.84,150.75,3.3162]
[1726833731485,15.94,150.84,150.74,15.94]
[1726833731681,15.94,150.82,150.72,15.94]
[1726833731880,7.32312848,150.85,150.72,15.94]
[1726833731881,15.94,150.8,150.72,15.94]
[1726833732086,3.9083,150.79,150.74,15.94]
[1726833732285,3.9083,150.79,150.75,3.3161]
[1726833732286,3.3159,150.77,150.75,3.3161]
[1726833732486,15.94,150.85,150.76,15.94]
[1726833732681,3.3157,150.78,150.76,19.2558]
[1726833734291,3.3154,150.79,150.76,19.2558]
[1726833735490,3.3156,150.78,150.76,19.2558]
[1726833735791,3.3156,150.78,150.76,15.94]
[1726833737781,3.3156,150.78,150.76,19.2559]
[1726833737986,3.3154,150.79,150.76,19.2559]
[1726833738691,3.3154,150.79,150.77,3.3157]
[1726833739287,1.1669,150.8,150.78,19.2555]
[1726833739687,1.1669,150.8,150.78,15.94]
[1726833740284,1.1669,150.8,150.76,15.94]
[1726833740486,1.1669,150.8,150.73,135.9766]
[1726833740695,1.1669,150.8,150.73,132.66]
[1726833740989,3.3161,150.76,150.73,132.66]
[1726833741191,3.3161,150.76,150.73,135.9765]
[1726833741402,3.3164,150.74,150.73,132.66]
[1726833741889,15.94,150.77,150.67,15.94]
[1726833742196,15.94,150.75,150.67,15.94]
[1726833742497,2.6073,150.74,150.67,15.94]
[1726833742696,3.9856,150.74,150.67,15.94]
[1726833743291,3.3175,150.7,150.67,19.2579]
[1726833744697,3.3176,150.69,150.67,15.94]
[1726833745391,3.9856,150.74,150.64,132.66]
[1726833745392,3.9856,150.74,150.65,15.94]
[1726833745992,3.318,150.67,150.65,15.94]
[1726833746599,3.9856,150.74,150.65,19.2583]
[1726833747195,3.3179,150.68,150.65,19.2583]
[1726833748201,3.9856,150.74,150.65,19.2583]
[1726833748704,3.3177,150.69,150.65,19.2583]
[1726833749000,3.9856,150.74,150.66,3.3182]
[1726833749397,3.317,150.72,150.66,3.3182]
[1726833749600,3.9856,150.74,150.66,3.3182]
[1726833750004,3.3177,150.69,150.66,3.3182]
[1726833750301,3.9856,150.74,150.66,3.3182]
[1726833750504,3.9856,150.74,150.65,19.2583]
[1726833750697,3.3179,150.68,150.65,19.2583]
[1726833751299,3.3176,150.69,150.66,3.3181]
[1726833751499,3.9856,150.74,150.65,15.94]
[1726833751696,3.3182,150.66,150.65,15.94]
[1726833751999,3.9856,150.74,150.65,10.19]
[1726833752000,10.19,150.69,150.65,10.19]
[1726833752299,3.3184,150.66,150.65,10.19]
[1726833753104,3.3181,150.67,150.65,10.19]
[1726833753497,3.3181,150.67,150.66,10.19]
[1726833753900,3.3178,150.68,150.65,15.92]
[1726833754099,3.3178,150.68,150.65,19.2383]
[1726833754302,19.9056,150.74,150.65,19.2383]
[1726833754712,3.3181,150.67,150.65,19.2383]
[1726833754903,3.3181,150.67,150.65,15.92]
[1726833755304,3.3181,150.67,150.64,3.3185]
[1726833756104,3.3182,150.66,150.64,3.3185]
[1726833756904,3.318,150.67,150.64,3.3185]
[1726833757105,15.92,150.72,150.65,3.3183]
[1726833757301,3.9856,150.74,150.65,15.92]
[1726833757302,19.9056,150.74,150.65,15.92]
[1726833757503,3.3174,150.7,150.65,15.92]
[1726833757706,19.9056,150.74,150.67,3.3179]
[1726833758206,3.3176,150.69,150.67,3.3179]
[1726833758403,19.9056,150.74,150.66,3.3182]
[1726833758802,3.3179,150.68,150.66,3.3182]
[1726833759106,3.3179,150.68,150.65,19.2383]
[1726833759898,3.318,150.67,150.65,19.2383]
[1726833760300,3.318,150.67,150.65,15.92]
[1726833760605,15.92,150.72,150.63,15.92]
[1726833761006,3.3185,150.65,150.63,15.92]
[1726833761807,3.3185,150.65,150.63,19.2388]
[1726833762102,3.3181,150.67,150.63,15.92]
[1726833762311,3.3181,150.67,150.64,3.3185]
[1726833762902,3.3181,150.67,150.65,3.3183]
[1726833763208,3.3181,150.67,150.63,15.92]
[1726833763509,3.3181,150.67,150.64,3.3185]
[1726833765411,1.1669,150.69,150.63,19.2387]
[1726833765611,1.1669,150.69,150.63,15.92]
[1726833766008,3.3183,150.66,150.63,19.2387]
[1726833766314,1.1669,150.69,150.63,15.92]
[1726833766609,1.1669,150.69,150.64,15.92]
[1726833767004,3.3179,150.68,150.65,3.3183]
[1726833768008,1.1669,150.69,150.64,3.34749419]
[1726833768612,3.3181,150.67,150.65,3.3184]
[1726833768810,3.3181,150.67,150.64,3.34749419]
[1726833769310,3.3181,150.67,150.64,6.66599419]
[1726833770214,1.1669,150.69,150.64,6.66599419]
[1726833771117,3.3181,150.67,150.64,6.66599419]
[1726833771313,3.3181,150.67,150.64,3.34749419]
[1726833771709,3.3178,150.68,150.64,3.34749419]
[1726833771913,3.3178,150.68,150.65,3.3183]
[1726833772110,3.3178,150.68,150.64,3.34749419]
[1726833772309,4.4846,150.69,150.66,3.318]
[1726833772510,1.1669,150.69,150.65,3.30666823]
[1726833773116,1.1669,150.69,150.66,3.3181]
[1726833773819,3.3178,150.68,150.66,3.3181]
[1726833774220,1.1669,150.69,150.66,3.3181]
[1726833774417,4.4845,150.69,150.66,3.3181]
[1726833774615,1.1669,150.69,150.66,3.3181]
[1726833774810,3.3178,150.68,150.66,3.3181]
[1726833775222,3.9856,150.74,150.64,19.30897815]
[1726833775422,3.3177,150.69,150.64,19.30897815]
[1726833775618,3.3177,150.69,150.66,3.318]
[1726833775818,3.9856,150.74,150.66,3.318]
[1726833776019,3.3179,150.68,150.67,10.2]
[1726833776417,3.3177,150.68,150.67,10.2]
[1726833777416,3.9856,150.74,150.67,10.2]
[1726833777625,14.1856,150.74,150.69,10.2]
[1726833778129,3.3173,150.7,150.69,10.2]
[1726833778816,3.3176,150.69,150.67,6.58375498]
[1726833779118,10.2,150.73,150.67,10.2]
[1726833779325,10.2,150.72,150.67,10.2]
[1726833780222,3.3179,150.68,150.67,10.2]
[1726833782515,14.1856,150.74,150.67,10.2]
[1726833782721,14.1856,150.74,150.68,10.2]
[1726833783024,3.3175,150.7,150.68,13.5176]
[1726833783317,14.1856,150.74,150.68,10.2]
[1726833783718,10.2,150.72,150.67,10.2]
[1726833784121,6.6338,150.72,150.65,10.2]
[1726833784320,3.3181,150.67,150.65,10.2]
[1726833785020,3.3182,150.66,150.65,10.2]
[1726833785323,10.2,150.71,150.65,13.5184]
[1726833785524,3.3175,150.7,150.68,10.2]
[1726833786118,3.3175,150.69,150.68,10.2]
[1726833788721,3.3174,150.7,150.68,10.2]
[1726833789521,3.3175,150.69,150.68,10.2]
[1726833790328,3.3174,150.7,150.68,10.2]
[1726833793031,3.9856,150.74,150.69,10.2]
[1726833793629,3.3168,150.73,150.7,3.3172]
[1726833794028,1.2952,150.74,150.69,10.2]
[1726833795428,3.3171,150.72,150.69,13.5174]
[1726833796730,1.2952,150.74,150.63,137.40607128]
[1726833797033,1.2952,150.74,150.67,10.2]
[1726833797236,3.3176,150.69,150.67,10.2]
[1726833798228,2.7067,150.73,150.64,13.5185]
[1726833798428,10.2,150.69,150.64,13.5185]
[1726833798731,3.3181,150.67,150.64,13.5185]
[1726833798936,3.3181,150.67,150.65,3.3184]
[1726833799135,2.7067,150.73,150.66,10.2]
[1726833799136,10.2,150.71,150.66,10.2]
[1726833799735,10.2,150.71,150.66,13.518]
[1726833800138,3.3177,150.69,150.66,13.518]
[1726833801537,3.3174,150.7,150.67,13.5179]
[1726833801726,3.3174,150.7,150.67,10.2]
[1726833802138,3.3174,150.7,150.68,3.3177]
[1726833802634,2.7067,150.73,150.69,10.2]
[1726833803042,12.9067,150.73,150.67,10.2]
[1726833803337,10.2,150.71,150.67,10.2]
[1726833803537,1.2952,150.74,150.7,10.2]
[1726833803743,3.317,150.72,150.7,10.2]
[1726833804147,3.317,150.72,150.7,13.5172]
[1726833804445,3.3167,150.73,150.7,13.5172]
[1726833804645,2.6765,150.77,150.71,10.2]
[1726833804847,12.8765,150.77,150.71,10.2]
[1726833805039,12.8765,150.77,150.73,10.2]
[1726833806047,3.3156,150.78,150.76,10.2]
[1726833806949,3.3154,150.79,150.77,10.2]
[1726833807745,3.3155,150.78,150.77,10.2]
[1726833808251,11.5788,150.81,150.76,10.2]
[1726833808451,3.3158,150.77,150.76,10.2]
[1726833809349,3.3156,150.78,150.76,10.2]
[1726833809554,11.5788,150.81,150.77,10.2]
[1726833809747,1.3788,150.81,150.77,10.2]
[1726833809948,3.3154,150.79,150.77,10.2]
[1726833810143,2.6074,150.83,150.78,10.2]
[1726833810347,3.3145,150.83,150.81,10.2]
[1726833810658,1.2632,150.85,150.82,10.2]
[1726833811048,3.3144,150.84,150.82,10.2]
[1726833811352,1.2632,150.85,150.82,10.2]
[1726833811856,1.2632,150.85,150.81,10.2]
[1726833812342,10.2,150.84,150.75,132.72]
[1726833812551,10.2,150.84,150.79,10.2]
[1726833812746,3.3148,150.82,150.79,13.5153]
[1726833813446,10.2,150.83,150.75,132.72]
[1726833813750,10.2,150.81,150.76,10.2]
[1726833813944,3.3157,150.78,150.76,10.2]
[1726833814144,10.2,150.81,150.76,10.2]
[1726833814651,3.3157,150.78,150.76,10.2]
[1726833814853,3.3157,150.78,150.76,13.516]
[1726833815349,3.3157,150.78,150.75,132.72]
[1726833815350,12.809,150.84,150.77,10.2]
[1726833815554,12.809,150.84,150.79,10.2]
[1726833816048,3.3151,150.81,150.79,10.2]
[1726833816249,12.809,150.84,150.79,10.2]
[1726833817248,3.3151,150.8,150.79,10.2]
[1726833818154,3.3149,150.81,150.78,3.39878434]
[1726833818350,3.3149,150.81,150.76,15.92]
[1726833818555,3.3149,150.81,150.78,15.92]
[1726833818744,2.609,150.84,150.78,19.2428283]
[1726833818745,3.3147,150.82,150.78,19.2428283]
[1726833818947,3.3147,150.82,150.79,3.3152]
[1726833819148,2.609,150.84,150.76,15.92]
[1726833819545,18.529,150.84,150.77,3.3156]
[1726833820255,3.3152,150.8,150.78,3.3155]
[1726833821252,3.3152,150.8,150.77,3.3157]
[1726833821649,18.529,150.84,150.75,3.3161]
[1726833821851,15.92,150.82,150.72,148.6]
[1726833822352,3.3161,150.76,150.72,148.6]
[1726833822550,15.92,150.82,150.72,148.6]
[1726833822944,3.3159,150.77,150.72,148.6]
[1726833823146,18.529,150.84,150.76,15.92]
[1726833824256,18.529,150.84,150.76,3.3159]
[1726833824553,18.529,150.84,150.74,15.92]
[1726833825152,18.529,150.84,150.77,3.3157]
[1726833825342,18.529,150.84,150.74,15.92]
[1726833826053,3.3155,150.79,150.76,3.3159]
[1726833826644,3.3155,150.79,150.77,3.3157]
[1726833826845,2.609,150.84,150.74,15.92]
[1726833827044,15.92,150.82,150.72,15.92]
[1726833827252,3.3159,150.77,150.74,3.3163]
[1726833827457,15.92,150.82,150.74,3.3163]
[1726833828050,3.3159,150.77,150.74,3.3163]
[1726833828258,15.92,150.82,150.74,3.3163]